lending/lending_fUSD_20241228
["ID","MTS","AMOUNT","RATE_DAILY","PERIOD"]
[346942154,1735408317458,293.242075,0.000155,24]
[346942155,1735408323606,282.659373,0.000155,24]
[346942156,1735408563983,500.0,0.00022999,120]
[346942157,1735408564582,602.0,0.00022999,120]
[346942158,1735408810153,500.0,0.00022999,120]
[346942197,1735409432571,-652.84514725,0.00010032,2]
[346942198,1735409432584,-121.78485275,0.00010032,2]
[346942199,1735409432593,-157.76,0.00010137,2]
[346942200,1735409432603,-300.0,0.00011581,2]
[346942201,1735409432612,-163.52,0.00011717,2]
[346942202,1735409432621,-185.94971085,0.00011744,2]
[346942203,1735409432803,-2821.92430489,0.00011744,2]
[346942204,1735409432814,-2060.54598426,0.00011744,2]
[346942205,1735409432824,-739.13,0.00011781,2]
[346942206,1735409432834,-736.92,0.00011878,2]
[346942207,1735409432844,-200.0,0.000119,4]
[346942208,1735409432853,-1000.0,0.00011908,2]
[346942209,1735409432863,-250.0,0.00011948,2]
[346942210,1735409432872,-1100.0,0.00011972,2]
[346942211,1735409432881,-500.0,0.00011972,2]
[346942212,1735409432890,-450.0,0.00012,2]
[346942213,1735409432899,-500.0,0.00012,4]
[346942214,1735409432909,-800.0,0.000121,4]
[346942215,1735409432918,-166.37,0.00012125,2]
[346942216,1735409432929,-1100.0,0.000122,4]
[346942217,1735409432938,-774.63,0.00012296,2]
[346942218,1735409432947,-1400.0,0.000123,4]
[346942219,1735409432956,-200.04,0.00012306,2]
[346942220,1735409432965,-804.33,0.00012341,2]
[346942221,1735409432974,-508.36,0.00012341,2]
[346942222,1735409432983,-771.17,0.00012341,2]
[346942223,1735409432992,-437.36,0.00012341,2]
[346942224,1735409433001,-437.36,0.00012341,2]
[346942225,1735409433011,-771.17,0.00012341,2]
[346942226,1735409433021,-437.36,0.00012341,2]
[346942227,1735409433030,-329.687,0.0001235,2]
[346942228,1735409433039,-200.0,0.000124,4]
[346942229,1735409433048,-200.0,0.000125,4]
[346942230,1735409433058,-500.0,0.00012511,2]
[346942231,1735409433067,-548.97,0.00012544,2]
[346942232,1735409433076,-200.0,0.000126,4]
[346942233,1735409433087,-200.0,0.000127,4]
[346942234,1735409433097,-323.16016528,0.00012747,2]
[346942235,1735409433107,-1174.0,0.000128,4]
[346942236,1735409433116,-369.27,0.0001287,2]
[346942237,1735409433126,-656.6499,0.0001287,2]
[346942238,1735409433135,-938.9891,0.0001287,2]
[346942239,1735409433145,-500.0,0.0001287,2]
[346942240,1735409433154,-5000.0,0.00012899,2]
[346942241,1735409433164,-25943.3723,0.00012899,2]
[346942242,1735409433175,-603.0864,0.000129,2]
[346942243,1735409433185,-2033.5827,0.000129,2]
[346942244,1735409433194,-379.17,0.000129,2]
[346942245,1735409433204,-376.19,0.000129,2]
[346942246,1735409433214,-1102.23,0.000129,2]
[346942247,1735409433223,-400.30603248,0.000129,2]
[346942248,1735409433233,-2000.0,0.000129,2]
[346942249,1735409433242,-802.2275502,0.000129,2]
[346942250,1735409433252,-157.77040212,0.000129,2]
[346942251,1735409433261,-158.51923001,0.000129,2]
[346942252,1735409433271,-283.13306452,0.000129,2]
[346942253,1735409433281,-24186.35538219,0.000129,2]
[346942254,1735409433290,-445.42838948,0.000129,2]
[346942255,1735409433300,-170.1163101,0.000129,2]
[346942256,1735409433310,-500.0,0.00012973,2]
[346942257,1735409433319,-1620.29630095,0.0001299,2]
[346942258,1735409433329,-2000.0,0.0001299,2]
[346942259,1735409433340,-1000.0,0.00012999,7]
[346942260,1735409433350,-500.0,0.00012999,2]
[346942261,1735409433359,-2000.0,0.00012999,2]
[346942262,1735409433369,-500.0,0.00012999,2]
[346942263,1735409433379,-500.0,0.00012999,2]
[346942264,1735409433388,-500.0,0.00012999,2]
[346942265,1735409433399,-500.0,0.00012999,2]
[346942266,1735409433408,-500.0,0.00012999,2]
[346942267,1735409433418,-500.0,0.00012999,2]
[346942268,1735409433431,-369.90849354,0.00012999,2]
[346942269,1735409433441,-37269.72573422,0.00012999,2]
[346942270,1735409433450,-587717.02945682,0.00012999,2]
[346942273,1735409438324,-7031.0,0.00012999,2]
[346942275,1735409438411,-464.54032843,0.00012999,2]
[346942276,1735409438422,-5680.29847286,0.00012999,2]
[346942277,1735409438436,-461244.04533547,0.00012999,2]
[346942278,1735409438513,-590.27031076,0.00012999,2]
[346942279,1735409438525,-22499.44337261,0.00012999,2]
[346942280,1735409438535,-275.82630924,0.00012999,2]
[346942281,1735409438547,-352.10604785,0.00012999,2]
[346942282,1735409438559,-86508.34457891,0.00012999,2]
[346942283,1735409438570,-11658.96253,0.00012999,2]
[346942284,1735409438581,-1379.3469946,0.00012999,2]
[346942285,1735409438597,-68357.03431997,0.00012999,2]
[346942286,1735409438608,-925.1,0.00012999,2]
[346942287,1735409438619,-13260.0,0.00012999,2]
[346942469,1735409440480,-495.6,0.00012999,2]
[346942470,1735409440491,-106858.03278171,0.00012999,2]
[346942472,1735409440510,-5866.29842664,0.00012999,2]
[346942474,1735409440522,-1569.0884825,0.00012999,2]
[346942475,1735409440532,-2399.38195,0.00012999,2]
[346942476,1735409440544,-74163.4758621,0.00012999,2]
[346942477,1735409440623,-823.431,0.00012999,2]
[346942478,1735409440637,-509.59999992,0.00012999,2]
[346942479,1735409440648,-14993.95356506,0.00012999,2]
[346942488,1735409440866,-18671.4992378,0.00012999,2]
[346942490,1735409440878,-466.04207518,0.00012999,2]
[346942492,1735409440888,-499.95,0.00012999,2]
[346942569,1735409443393,-1707.8,0.00012999,2]
[346942570,1735409443410,-3576.9,0.00012999,2]
[346942571,1735409443507,-108570.57214953,0.00012999,2]
[346942572,1735409443524,-6597.02326901,0.00012999,2]
[346942573,1735409443610,-5642.4997,0.00012999,2]
[346942574,1735409443621,-4863.64164733,0.00012999,2]
[346942575,1735409443632,-7565.95,0.00012999,2]
[346942576,1735409443643,-500.0,0.00012999,2]
[346942581,1735409446385,-510.44410608,0.000129,2]
[346942582,1735409446395,-50498.94023392,0.00012999,2]
[346942583,1735409446476,-2168.3280205,0.00012999,2]
[346942584,1735409446491,-549.02500088,0.00012999,2]
[346942585,1735409446513,-581.87,0.00012999,2]
[346942586,1735409446525,-366.62169138,0.00012999,2]
[346942587,1735409446536,-363.3464882,0.00012999,2]
[346942588,1735409446548,-7952.07334636,0.00012999,2]
[346942589,1735409446567,-1167.1371791,0.00012999,2]
[346942590,1735409446656,-18767.11344377,0.00012999,2]
[346942591,1735409446668,-1800.0,0.00012999,2]
[346943516,1735409550249,400.45764381,0.00023,120]
[346943519,1735410157409,500.0,0.00022999,120]
[346943520,1735410158579,500.0,0.00022999,120]
[346943521,1735410159380,500.0,0.00022999,120]
[346943522,1735410160256,500.0,0.00022999,120]
[346943523,1735410161257,500.0,0.00022999,120]
[346943524,1735410162556,500.0,0.00022999,120]
[346943525,1735410163359,500.0,0.00022999,120]
[346943526,1735410163970,500.0,0.00022999,120]
[346943527,1735410164576,500.0,0.00022999,120]
[346943528,1735410165600,500.0,0.00022999,120]
[346943529,1735410166338,500.0,0.00022999,120]
[346943530,1735410166944,500.0,0.00022999,120]
[346943531,1735410168985,500.0,0.00022999,120]
[346943532,1735410170569,500.0,0.00022999,120]
[346943533,1735410171128,500.0,0.00022999,120]
[346943534,1735410172161,500.0,0.00022999,120]
[346943535,1735410173694,500.0,0.00022999,120]
[346943536,1735410174566,500.0,0.00022999,120]
[346943537,1735410175106,500.0,0.00022999,120]
[346943538,1735410319731,4855.83926355,9e-05,2]
[346943547,1735410424676,500.0,0.00022999,120]
[346943567,1735410514453,6512.0,0.0002,120]
[346943568,1735410527949,522.92,0.00022999,120]
[346943569,1735410536499,500.0,0.00022999,120]
[346943570,1735410536771,500.0,0.00022999,120]
[346943571,1735410537043,406.69021186,0.00022999,120]
[346943576,1735410631842,-337.4177014,9.937e-05,2]
[346943577,1735410631852,-4503.5840229,0.0001,2]
[346943578,1735410631862,-208.69374742,0.00010037,2]
[346943579,1735410631872,-164.45,0.00010137,2]
[346943580,1735410631882,-262.33,0.00010137,2]
[346943581,1735410631891,-790.8,0.00010137,2]
[346943582,1735410631901,-502.0,0.00010849,2]
[346943583,1735410631910,-250.0,0.00011652,2]
[346943584,1735410631920,-500.0,0.00011972,2]
[346943585,1735410631930,-1100.0,0.00011972,2]
[346943586,1735410631939,-1000.0,0.00011977,2]
[346943587,1735410631949,-2000.14295983,0.00012,2]
[346943588,1735410631958,-400.0,0.00012021,2]
[346943589,1735410631968,-182.68,0.00012192,2]
[346943590,1735410631978,-249.42,0.00012206,2]
[346943591,1735410631987,-500.07,0.00012253,2]
[346943592,1735410631997,-182.72,0.00012278,2]
[346943593,1735410632006,-150.0,0.00012278,2]
[346943594,1735410632016,-153.76,0.00012278,2]
[346943595,1735410632027,-364.41,0.00012278,2]
[346943596,1735410632036,-235.78,0.000123,2]
[346943597,1735410632046,-302.75,0.000123,2]
[346943598,1735410632055,-978.15,0.000123,2]
[346943599,1735410632066,-182.72,0.000123,2]
[346943600,1735410632075,-150.0,0.000123,2]
[346943601,1735410632085,-978.15,0.000123,2]
[346943602,1735410632094,-182.72,0.000123,2]
[346943603,1735410632103,-150.0,0.000123,2]
[346943604,1735410632112,-477.33,0.000123,2]
[346943605,1735410632122,-182.72,0.000123,2]
[346943606,1735410632131,-150.0,0.000123,2]
[346943607,1735410632140,-150.0,0.000123,2]
[346943608,1735410632150,-182.72,0.000123,2]
[346943609,1735410632159,-315.929,0.0001235,2]
[346943610,1735410632168,-790.8,0.00012401,2]
[346943611,1735410632178,-200.0,0.00012445,2]
[346943612,1735410632187,-200.0,0.00012446,2]
[346943613,1735410632196,-200.0,0.00012465,2]
[346943614,1735410632206,-200.0,0.00012469,2]
[346943615,1735410632216,-200.0,0.0001247,2]
[346943616,1735410632225,-599.0,0.00012487,2]
[346943617,1735410632234,-4422.17392771,0.000125,2]
[346943618,1735410632247,-4636.58367291,0.000125,2]
[346943619,1735410632258,-9271.25795617,0.000125,2]
[346943620,1735410632267,-369.11,0.00012509,2]
[346943621,1735410632276,-429.15546045,0.00012632,2]
[346943622,1735410632286,-12390.00776522,0.00012767,2]
[346943623,1735410632295,-3000.0,0.0001287,2]
[346943624,1735410632304,-251.5062549,0.00012899,2]
[346943625,1735410632315,-1000.0,0.00012899,2]
[346943626,1735410632324,-790.4088,0.000129,2]
[346943627,1735410632333,-9513.281,0.000129,2]
[346943628,1735410632343,-3739.1399,0.000129,2]
[346943629,1735410632354,-2500.0,0.000129,2]
[346943630,1735410632363,-500.0,0.000129,2]
[346943631,1735410632374,-300.22952436,0.000129,2]
[346943632,1735410632383,-8246.0837942,0.000129,2]
[346943633,1735410632392,-340.29607072,0.000129,2]
[346943634,1735410632403,-636.0,0.00012943,2]
[346943635,1735410632412,-500.0,0.00012973,2]
[346943636,1735410632421,-500.0,0.00012973,2]
[346943637,1735410632431,-500.0,0.00012999,2]
[346943638,1735410632440,-500.0,0.00012999,2]
[346943639,1735410632449,-151.69114606,0.00012999,2]
[346943640,1735410632459,-1540.833,0.00012999,2]
[346943641,1735410632468,-500.0,0.00012999,2]
[346943642,1735410632477,-379.89,0.00012999,2]
[346943643,1735410632487,-375.31,0.00012999,2]
[346943644,1735410632497,-168.737,0.00012999,2]
[346943645,1735410632506,-26675.19646186,0.00013,2]
[346943646,1735410632516,-138991.50217324,0.00013,2]
[346943647,1735410632535,-31787.65069567,0.00013,2]
[346943648,1735410637583,-249.42,0.00012627,2]
[346943649,1735410637592,-3612.12541439,0.00013,2]
[346943650,1735410637604,-7270.766872,0.00013,2]
[346943651,1735410637615,-2636.95,0.00013,2]
[346943652,1735410637693,-403.400028,0.00013,2]
[346943653,1735410637841,-1487.94226817,0.00013,2]
[346943836,1735410639667,-4510.45721339,0.00013,2]
[346943837,1735410639678,-469.45324531,0.00013,2]
[346943838,1735410639689,-5829.85985594,0.00013,2]
[346943840,1735410639700,-3151.84771964,0.00013,2]
[346943849,1735410639772,-462.28166682,0.00013,2]
[346943851,1735410639783,-569.22959392,0.00013,2]
[346943853,1735410639795,-22982.58151607,0.00013,2]
[346943856,1735410639806,-364.96708586,0.00013,2]
[346943858,1735410639823,-2966.45589319,0.00013,2]
[346943874,1735410639959,-864.60574511,0.00013,2]
[346943893,1735410640133,-1193.49997,0.00013,2]
[346944134,1735410642728,-725.54014404,0.00013,2]
[346944164,1735410642996,500.0,0.00022999,120]
[346944217,1735410643509,338.88,0.00022999,120]
[346944422,1735410645676,-613.15,0.00013,2]
[346944423,1735410645688,-293.83320488,0.00013,2]
[346944424,1735410645758,-342.43251486,0.00013,2]
[346944425,1735410645769,-87405.85435984,0.00013,2]
[346944426,1735410741379,500.0,0.00022999,120]
[346944427,1735410741479,500.0,0.00022999,120]
[346944428,1735410741784,263.38,0.00022999,120]
[346944429,1735410773869,500.0,0.00022999,120]
[346944430,1735410774121,297.29,0.00022999,120]
[346944438,1735411511393,309.14970049,0.00022999,120]
[346944472,1735411831938,-500.0,0.00010041,2]
[346944473,1735411831948,-756.11,0.00010041,2]
[346944474,1735411831958,-156.01,0.00010137,2]
[346944475,1735411831967,-520.51,0.00011804,2]
[346944476,1735411831977,-400.0,0.00011827,2]
[346944477,1735411831987,-500.0,0.00011963,2]
[346944478,1735411831997,-1000.0,0.00011963,2]
[346944479,1735411832007,-500.0,0.00011972,2]
[346944480,1735411832016,-1100.0,0.00011972,2]
[346944481,1735411832026,-250.0,0.00011991,2]
[346944482,1735411832036,-450.0,0.00012,2]
[346944483,1735411832045,-450.0,0.00012,2]
[346944484,1735411832055,-500.0,0.00012,2]
[346944485,1735411832065,-589.53,0.00012055,2]
[346944486,1735411832074,-756.11,0.00012305,2]
[346944487,1735411832083,-302.912,0.0001235,2]
[346944488,1735411832094,-4479.25286891,0.0001237,2]
[346944489,1735411832107,-809.55910396,0.0001237,2]
[346944490,1735411832118,-4237.39069681,0.0001237,2]
[346944491,1735411832129,-836.0,0.0001237,2]
[346944492,1735411832141,-3086.30673023,0.0001237,2]
[346944493,1735411832205,-525.00000005,0.0001237,2]
[346944494,1735411832228,-810.97479043,0.0001237,2]
[346944495,1735411832247,-5164.30580961,0.0001237,2]
[346944496,1735411832257,-200.0,0.0001237,2]
[346944497,1735411832267,-1055.05648166,0.00012433,2]
[346944511,1735411832467,-5302.87115907,0.00012434,2]
[346944513,1735411832477,-1055.05648166,0.00012435,2]
[346944516,1735411832487,-16115.72035766,0.00012436,2]
[346944518,1735411832496,-1055.05648166,0.00012437,2]
[346944521,1735411832506,-356.35468397,0.00012437,2]
[346944523,1735411832515,-16115.72035766,0.00012437,2]
[346944526,1735411832524,-16115.72035766,0.00012438,2]
[346944529,1735411832534,-1055.05648166,0.0001244,2]
[346944533,1735411832543,-5302.87115907,0.00012442,2]
[346944535,1735411832553,-350.18512427,0.00012443,2]
[346944538,1735411832562,-2120.49976078,0.00012443,2]
[346944662,1735411837780,-3442.65190197,0.00012443,2]
[346944663,1735411837947,-408.499957,0.00012443,2]
[346944859,1735411839777,-1190.70634791,0.00012443,2]
[346944860,1735411839806,-1985.6663517,0.00012443,2]
[346944861,1735411839835,-686.24633394,0.00012443,2]
[346944862,1735411839867,-1606.229472,0.00012443,2]
[346944863,1735411839979,-395.88,0.00012443,2]
[346944864,1735411839991,-4279.34023236,0.00012443,2]
[346944865,1735411840001,-3338.73772535,0.00012443,2]
[346944866,1735411840012,-1964.13343372,0.00012443,2]
[346944867,1735411840021,-350.18512427,0.00012443,2]
[346944868,1735411840031,-1055.05648166,0.00012444,2]
[346944869,1735411840040,-16115.72035766,0.00012445,2]
[346944870,1735411840049,-350.18512427,0.00012449,2]
[346944871,1735411840059,-350.18512427,0.00012449,2]
[346944872,1735411840068,-1055.05648166,0.00012453,2]
[346944873,1735411840077,-356.35468397,0.00012453,2]
[346944874,1735411840087,-356.35468397,0.00012455,2]
[346944875,1735411840097,-350.18512427,0.00012456,2]
[346944876,1735411840106,-356.35468397,0.00012456,2]
[346944877,1735411840116,-5302.87115907,0.00012458,2]
[346944878,1735411840125,-5302.87115907,0.00012462,2]
[346944879,1735411840134,-350.18512427,0.00012463,2]
[346944880,1735411840143,-5302.87115907,0.00012466,2]
[346944882,1735411840153,-16115.72035766,0.00012468,2]
[346944884,1735411840162,-356.35468397,0.00012468,2]
[346944885,1735411840171,-356.35468397,0.00012469,2]
[346944887,1735411840180,-373.92,0.00012522,2]
[346944889,1735411840189,-476.96303521,0.00012522,2]
[346944891,1735411840198,-182.68,0.000127,2]
[346944893,1735411840208,-166.66,0.00012783,2]
[346944895,1735411840217,-270.1625177,0.0001285,2]
[346944897,1735411840226,-31892.0,0.00012853,2]
[346944899,1735411840235,-5000.0,0.00012898,2]
[346944901,1735411840244,-742.14754147,0.000129,2]
[346944903,1735411840254,-168.737,0.000129,2]
[346944905,1735411840263,-742.14754147,0.000129,2]
[346944907,1735411840272,-742.14754147,0.000129,2]
[346944908,1735411840281,-1759.905,0.000129,2]
[346944909,1735411840290,-742.14754147,0.000129,2]
[346944910,1735411840300,-2445.34730988,0.000129,2]
[346944911,1735411840309,-188.75537636,0.000129,2]
[346944912,1735411840319,-170.11631009,0.000129,2]
[346944913,1735411840328,-549.77480009,0.00012973,2]
[346944914,1735411840337,-10948.06195353,0.0001298,2]
[346944915,1735411840346,-500.0,0.00012998,2]
[346944916,1735411840355,-416.03808562,0.00012998,2]
[346944917,1735411840364,-500.0,0.00012999,2]
[346944918,1735411840373,-15392.38715783,0.00012999,2]
[346944919,1735411840382,-163813.93806204,0.00012999,2]
[346944920,1735411840396,-980.44946021,0.00012999,2]
[346944921,1735411840408,-10227.24145559,0.00012999,2]
[346944930,1735411842795,-931.13278959,0.00012999,2]
[346944931,1735411842807,-1113.46343802,0.00012999,2]
[346944932,1735411842818,-856.20855012,0.00012999,2]
[346944933,1735411842896,-305553.73858573,0.00012999,2]
[346944934,1735411842908,-6766.8835218,0.00012999,2]
[346944935,1735411842920,-943.91023258,0.00012999,2]
[346944936,1735411842930,-1098.0000002,0.00012999,2]
[346944937,1735411842942,-3517.6,0.00012999,2]
[346944938,1735411842953,-350.46,0.00012999,2]
[346944939,1735411842963,-520.98094641,0.00012999,2]
[346944940,1735411842974,-22491.7547035,0.00012999,2]
[346944941,1735411843042,-401.0,0.00012999,2]
[346944945,1735411845783,-656.86,0.00012612,2]
[346944946,1735411845792,-26442.95574171,0.00012999,2]
[346944947,1735411845802,-441.64,0.00012999,2]
[346944948,1735411845955,-22787.37970422,0.00012999,2]
[346944949,1735411845966,-2213.15629143,0.00012999,2]
[346944950,1735411845978,-6454.59947858,0.00012999,2]
[346944951,1735411846000,-7404.41532893,0.00012999,2]
[346945076,1735411870735,354.0,0.00023,120]
[346945078,1735411917220,254.143131,0.000155,24]
[346945079,1735411926924,263.815415,0.000155,24]
[346945146,1735413032216,-300.0,0.00010136,2]
[346945147,1735413032226,-168.41,0.00010137,2]
[346945148,1735413032235,-231.52603081,0.00010137,2]
[346945149,1735413032246,-268.47396919,0.00010137,2]
[346945150,1735413032255,-500.0,0.00010137,2]
[346945151,1735413032265,-147.00194117,0.00010137,2]
[346945266,1735413037847,-352.99805883,0.00010137,2]
[346945267,1735413037857,-357.75374742,0.00010137,2]
[346945268,1735413037867,-760.4,0.0001021,2]
[346945269,1735413037876,-180.0,0.00011148,2]
[346945270,1735413037886,-150.0,0.00011314,2]
[346945271,1735413037895,-150.0,0.00011891,2]
[346945272,1735413037905,-606.62,0.00011897,2]
[346945273,1735413037914,-500.0,0.00011972,2]
[346945274,1735413037924,-450.0,0.00012,2]
[346945276,1735413037933,-450.0,0.00012,2]
[346945278,1735413037942,-400.0,0.00012188,2]
[346945279,1735413037951,-283.94,0.00012224,2]
[346945280,1735413037961,-1000.0,0.00012288,2]
[346945281,1735413037971,-290.526,0.0001235,2]
[346945282,1735413037981,-250.0,0.00012404,2]
[346945283,1735413037991,-760.4,0.00012474,2]
[346945284,1735413038000,-166.37,0.0001256,2]
[346945285,1735413038009,-270.1625177,0.00012736,2]
[346945286,1735413038019,-10509.4075,0.00012899,2]
[346945287,1735413038030,-1283.817,0.00012899,2]
[346945288,1735413038040,-109.17962605,0.000129,2]
[346945289,1735413038137,-295.54307395,0.000129,2]
[346945290,1735413038147,-4464.5841,0.000129,2]
[346945291,1735413038156,-1972.98847239,0.000129,2]
[346945292,1735413038168,-527.01152761,0.000129,2]
[346945294,1735413038178,-369.51,0.000129,2]
[346945295,1735413038187,-376.03,0.000129,2]
[346945296,1735413038196,-374.57,0.000129,2]
[346945297,1735413038205,-1829.715,0.000129,2]
[346945298,1735413038215,-168.738,0.000129,2]
[346945299,1735413038224,-334.28172654,0.000129,2]
[346945300,1735413038233,-4452.8852489,0.000129,2]
[346945301,1735413038243,-500.0,0.00012999,2]
[346945302,1735413038252,-3000.0,0.00012999,2]
[346945303,1735413038261,-376.24,0.00012999,2]
[346945304,1735413038272,-376.99,0.00012999,2]
[346945305,1735413038283,-375.49,0.00013,2]
[346945306,1735413038292,-370.2,0.00013,2]
[346945307,1735413038301,-376.47,0.00013,2]
[346945309,1735413038310,-1838.78746365,0.00013,2]
[346945942,1735414232159,-328.995,9.8e-05,2]
[346945945,1735414232323,-1211.0,9.8e-05,2]
[346945946,1735414232340,-544.00029807,9.8e-05,2]
[346945947,1735414232350,-760.12,9.965e-05,2]
[346945948,1735414232359,-200.0,0.00010089,2]
[346945949,1735414232368,-273.38,0.00010137,2]
[346945950,1735414232377,-498.38,0.0001116,2]
[346945951,1735414232387,-150.0,0.00011236,2]
[346945952,1735414232396,-150.0,0.00011245,2]
[346945953,1735414232406,-1000.0,0.00011294,2]
[346945954,1735414232415,-150.0,0.00011363,2]
[346945955,1735414232425,-150.0,0.00011495,2]
[346945956,1735414232434,-150.0,0.00011515,2]
[346945957,1735414232443,-150.0,0.00011641,2]
[346945958,1735414232452,-150.0,0.00011707,2]
[346945959,1735414232461,-150.0,0.00011801,2]
[346945960,1735414232471,-150.0,0.0001187,2]
[346945961,1735414232479,-150.0,0.00011878,2]
[346945962,1735414232489,-250.0,0.00011948,2]
[346945963,1735414232498,-400.0,0.00011957,2]
[346945964,1735414232507,-500.0,0.00011972,2]
[346945965,1735414232516,-1100.0,0.00011972,2]
[346945966,1735414232525,-150.0,0.00011988,2]
[346945967,1735414232534,-150.0,0.00011989,2]
[346945968,1735414232543,-276.51,0.0001201,2]
[346945969,1735414232553,-150.0,0.00012124,2]
[346945970,1735414232562,-255.49751647,0.00012221,2]
[346945971,1735414232571,-150.0,0.00012226,2]
[346945972,1735414232581,-760.12,0.00012229,2]
[346945973,1735414232591,-150.0,0.00012238,2]
[346945974,1735414232600,-302.229,0.0001235,2]
[346945975,1735414232609,-498.38,0.00012555,2]
[346945977,1735414232618,-150.0,0.00012695,2]
[346945978,1735414232627,-2500.0,0.00012705,2]
[346945980,1735414232636,-1836.35473711,0.00012705,2]
[346945983,1735414232652,-382.77965015,0.00012705,2]
[346945985,1735414232661,-1000.0,0.00012706,2]
[346945986,1735414232670,-2219.13438723,0.00012727,2]
[346945987,1735414232679,-150.0,0.0001273,2]
[346945988,1735414232688,-2219.13438723,0.00012748,2]
[346945989,1735414232697,-150.0,0.0001276,2]
[346945990,1735414232707,-1583.17480619,0.0001277,2]
[346945991,1735414232725,-635.95958104,0.0001277,2]
[346945992,1735414232735,-2219.13438723,0.00012792,2]
[346945993,1735414232743,-6671.33033002,0.000128,2]
[346945994,1735414232752,-540.64748608,0.00012804,2]
[346945995,1735414232761,-14769.14556848,0.00012805,2]
[346945996,1735414232770,-821799.75860455,0.00012805,2]
[346945997,1735414232781,-9203.25639999,0.00012805,2]
[346945998,1735414232798,-455.07,0.00012805,2]
[346945999,1735414232813,-1006.1552966,0.00012805,2]
[346946000,1735414232824,-3023.91097716,0.00012805,2]
[346946001,1735414232835,-29526.03351192,0.00012805,2]
[346946004,1735414238059,-266.06591,0.00012805,2]
[346946005,1735414238071,-1479.662167,0.00012805,2]
[346946006,1735414238084,-2198.98756785,0.00012805,2]
[346946007,1735414238095,-48509.70000005,0.00012805,2]
[346946008,1735414238106,-943.21162153,0.00012805,2]
[346946009,1735414238122,-2190.0,0.00012805,2]
[346946010,1735414238243,-889160.03102883,0.00012805,2]
[346946011,1735414238281,-1322.5644091,0.00012805,2]
[346946012,1735414238313,-806.44037089,0.00012805,2]
[346946013,1735414238325,-11577.70813081,0.00012805,2]
[346946074,1735414240164,-464.605,0.00012805,2]
[346946075,1735414240176,-95192.10397823,0.00012805,2]
[346946076,1735414240186,-19168.613496,0.00012805,2]
[346946077,1735414240196,-6671.33033001,0.00012811,2]
[346946078,1735414240206,-2219.13438723,0.00012813,2]
[346946079,1735414240216,-6671.33033001,0.00012822,2]
[346946080,1735414240225,-6671.33033001,0.00012833,2]
[346946081,1735414240235,-2219.13438723,0.00012835,2]
[346946082,1735414240245,-6671.33033001,0.00012844,2]
[346946083,1735414240255,-399.5724,0.0001285,2]
[346946084,1735414240264,-6671.33033001,0.00012856,2]
[346946085,1735414240273,-2219.13438723,0.00012857,2]
[346946086,1735414240283,-6671.33033001,0.00012867,2]
[346946087,1735414240291,-6671.33033001,0.00012878,2]
[346946088,1735414240301,-2219.13438723,0.00012878,2]
[346946089,1735414240311,-6671.33033001,0.00012889,2]
[346946090,1735414240320,-1831.208,0.00012897,2]
[346946091,1735414240330,-14324.8723,0.000129,2]
[346946092,1735414240339,-793.6056,0.000129,2]
[346946093,1735414240349,-110945.24427175,0.000129,2]
[346946094,1735414240359,-332.54348238,0.000129,2]
[346946095,1735414240368,-6671.33033001,0.000129,2]
[346946096,1735414240377,-2219.13438723,0.000129,2]
[346946097,1735414240386,-170.11631009,0.000129,2]
[346946098,1735414240397,-150.0,0.00012907,2]
[346946099,1735414240408,-3247.9422882,0.00012996,2]
[346946100,1735414240418,-1014.9893486,0.00012996,2]